bitfinex/quotes_ETHUSD_20241101
["timestamp","ask_amount","ask_price","bid_price","bid_amount"]
[1730430328773,3.9836,2510.3,2510.1,0.41304802]
[1730430328974,3.98336,2510.5,2510.1,0.41304802]
[1730430329141,3.9833,2510.5,2510.2,4.12948018]
[1730430329473,3.9833,2510.5,2510.3,0.45425282]
[1730430330040,7.96667,2510.5,2510.3,0.45425282]
[1730430330259,3.9833,2510.5,2510.3,0.45425282]
[1730430330463,3.98342,2510.4,2510.3,0.45425282]
[1730430330780,3.98358,2510.3,2510.2,4.12948018]
[1730430330992,3.98402,2510.1,2510.0,0.8159]
[1730430331196,3.98402,2510.1,2509.9,3.34678018]
[1730430331357,3.98402,2510.1,2509.9,3.83796465]
[1730430331559,3.98402,2510.1,2509.8,0.8159]
[1730430331791,3.98422,2509.9,2509.8,0.8159]
[1730430331981,3.98422,2509.9,2509.6,4.11858018]
[1730430332956,3.98441,2509.8,2509.6,4.11858018]
[1730430333595,4.76151,2510.1,2509.6,3.34678018]
[1730430333771,3.98406,2510.0,2509.6,4.1612252]
[1730430334094,3.98406,2510.0,2509.7,0.8127]
[1730430334300,3.98406,2510.0,2509.3,3.98509]
[1730430334301,0.8181,2509.8,2509.3,4.15948018]
[1730430334469,3.98457,2509.7,2509.3,4.15948018]
[1730430334769,3.98441,2509.8,2509.4,0.85195099]
[1730430335361,7.9689,2509.8,2509.4,0.85195099]
[1730430335801,3.98457,2509.7,2509.4,0.85195099]
[1730430335973,3.98441,2509.8,2509.4,0.85195099]
[1730430336707,7.9689,2509.8,2509.4,0.85195099]
[1730430337805,3.98352,2510.4,2509.7,4.78971]
[1730430338013,3.98311,2510.6,2509.9,3.34678018]
[1730430338300,3.98399,2510.1,2509.7,0.8053]
[1730430338470,3.98399,2510.1,2509.8,0.41520802]
[1730430339902,3.98367,2510.3,2509.8,0.41520802]
[1730430340267,3.98334,2510.5,2510.0,0.7635]
[1730430340467,3.98334,2510.5,2510.2,3.34678018]
[1730430341293,7.96674,2510.5,2510.2,3.34678018]
[1730430341470,3.98334,2510.5,2510.3,0.33467802]
[1730430341893,7.96671,2510.5,2510.3,0.33467802]
[1730430342101,3.98367,2510.3,2510.0,0.7635]
[1730430343505,3.98334,2510.5,2510.0,0.7635]
[1730430344225,3.98334,2510.5,2510.0,0.8431734]
[1730430344708,7.96673,2510.5,2510.0,0.8431734]
[1730430344882,3.98343,2510.4,2510.1,0.81741336]
[1730430345835,3.98312,2510.6,2510.1,4.80131336]
[1730430346017,3.98336,2510.5,2510.1,0.81741336]
[1730430346330,3.98336,2510.5,2510.0,0.7635]
[1730430346331,3.98327,2510.5,2510.0,0.7635]
[1730430346626,3.98355,2510.4,2510.0,0.7635]
[1730430346935,3.98327,2510.5,2510.0,0.7635]
[1730430347787,4.85478307,2510.7,2510.1,0.07967106]
[1730430348242,3.98328,2510.5,2510.0,0.7635]
[1730430348421,3.98328,2510.5,2510.1,0.80944002]
[1730430348605,3.98328,2510.5,2510.1,0.88911108]
[1730430349128,4.05208307,2510.7,2510.2,0.7929]
[1730430349428,3.9828,2510.8,2510.2,8.12331018]
[1730430350792,3.98269,2510.9,2510.4,0.7951]
[1730430350989,7.96543,2510.9,2510.4,0.7951]
[1730430351193,3.98241,2511.1,2510.5,3.42644455]
[1730430351394,3.9825,2511.0,2510.5,3.34678018]
[1730430351626,3.98241,2511.1,2510.6,3.98309]
[1730430351829,3.98241,2511.1,2510.7,0.7951]
[1730430352410,3.98249,2511.0,2510.7,0.7951]
[1730430352929,7.96485,2511.1,2510.7,0.7951]
[1730430353096,3.98241,2511.1,2510.7,0.7951]
[1730430353504,7.96483,2511.1,2510.7,0.7951]
[1730430354032,3.98218,2511.2,2510.7,1.60761302]
[1730430354233,4.05107971,2511.3,2510.8,3.34678018]
[1730430355330,3.98216,2511.2,2510.8,3.34678018]
[1730430355533,7.96416,2511.3,2510.8,3.34678018]
[1730430355700,3.98205,2511.3,2510.8,3.34678018]
[1730430355902,3.98195,2511.4,2510.8,7.92818476]
[1730430356128,3.982,2511.3,2510.8,7.84853345]
[1730430359940,3.982,2511.3,2510.9,0.7526]
[1730430360851,3.98235,2511.1,2510.8,3.34678018]
[1730430361055,3.982,2511.3,2510.8,8.1394462]
[1730430361407,3.982,2511.3,2510.9,0.7695]
[1730430361714,3.98219,2511.2,2510.9,0.7695]
[1730430361917,0.8279,2511.5,2510.9,0.7695]
[1730430361918,3.98237,2511.1,2510.9,0.7695]
[1730430362140,7.9648,2511.1,2510.9,0.7695]
[1730430362443,3.98237,2511.1,2510.9,0.7695]
[1730430363518,3.98237,2511.1,2510.7,0.8282]
[1730430363742,3.98248,2511.0,2510.7,0.8282]
[1730430364245,3.98237,2511.1,2510.5,3.34678018]
[1730430364246,3.98277,2510.9,2510.5,0.7641]
[1730430364850,0.8022,2511.1,2510.5,0.7641]
[1730430365059,3.98307,2510.7,2510.2,4.14878018]
[1730430365261,3.98316,2510.6,2510.2,4.14878018]
[1730430365841,7.96615,2510.7,2510.2,4.14878018]
[1730430366433,3.98307,2510.7,2510.2,4.14878018]
[1730430367009,7.96612,2510.7,2510.2,4.14878018]
[1730430367217,3.98339,2510.5,2510.2,0.802]
[1730430367417,4.779642,2510.7,2510.2,0.802]
[1730430367647,3.9832,2510.6,2510.2,0.802]
[1730430368232,3.98303,2510.7,2510.2,4.14878018]
[1730430368567,3.98272,2510.9,2510.3,3.98356]
[1730430368934,3.98272,2510.9,2510.5,3.34678018]
[1730430369227,3.98272,2510.9,2510.2,8.13242018]
[1730430369228,3.98284,2510.8,2510.2,8.13242018]
[1730430369431,3.97284,2510.8,2510.2,9.3440592]
[1730430370228,3.97284,2510.8,2510.2,13.3276992]
[1730430370434,3.98272,2510.9,2510.3,4.06323275]
[1730430370833,3.98272,2510.9,2510.3,4.06323211]
[1730430371043,3.9828,2510.8,2510.2,9.3440592]
[1730430371268,3.98321,2510.6,2510.2,4.14878018]
[1730430371460,4.73788,2510.5,2510.0,0.7951]
[1730430372372,3.98321,2510.6,2510.0,8.84275068]
[1730430372581,3.98321,2510.6,2510.2,3.34678018]
[1730430372778,3.98288,2510.8,2510.3,0.7745]
[1730430372976,7.96579,2510.8,2510.3,0.7745]
[1730430373136,3.98305,2510.7,2510.3,0.7745]
[1730430373792,3.9822,2511.2,2510.3,0.7745]
[1730430373793,3.98215,2511.2,2510.6,4.7865]
[1730430374261,3.98193,2511.4,2510.8,4.15028018]
[1730430374465,4.75451,2511.6,2511.2,0.8035]
[1730430374662,3.98161,2511.6,2511.2,0.8035]
[1730430374835,9.3505598,2511.8,2511.2,0.8035]
[1730430375180,3.98147,2511.7,2511.2,0.8035]
[1730430375864,4.6045498,2511.8,2511.2,5.99705002]
[1730430376171,4.6045498,2511.8,2511.3,3.34678018]
[1730430376643,3.98153,2511.6,2511.3,3.34678018]
[1730430378041,3.98153,2511.6,2511.2,2.01500002]
[1730430378452,8.5858998,2511.8,2511.3,3.34678018]
[1730430378657,3.98149,2511.7,2511.3,4.2811882]
[1730430378862,3.98157,2511.6,2511.3,4.2811882]
[1730430379477,3.9813,2511.8,2511.3,7.32876018]
[1730430379855,3.98105,2511.9,2511.3,11.31065018]
[1730430380063,7.96196,2512.0,2511.5,3.34678018]
[1730430380263,4.80733,2512.1,2511.5,3.34678018]
[1730430380440,3.98102,2512.0,2511.5,3.34678018]
[1730430380758,8.78829,2512.1,2511.6,0.80848902]
[1730430380962,4.80742,2512.1,2511.6,0.80848902]
[1730430381148,0.62313538,2512.2,2511.7,4.10288018]
[1730430381352,0.62313538,2512.2,2512.1,3.34678018]
[1730430381955,3.98036,2512.4,2512.1,3.34678018]
[1730430382151,3.98041,2512.3,2512.0,0.7561]
[1730430383180,3.98041,2512.3,2511.8,0.8177]
[1730430383181,3.98059,2512.2,2511.8,0.8177]
[1730430384371,3.98089,2512.0,2511.8,0.8177]
[1730430384681,3.98059,2512.2,2511.8,0.8177]
[1730430385883,3.9803,2512.4,2511.9,4.24919787]
[1730430386247,3.9803,2512.4,2511.9,4.16958018]
[1730430386577,3.98029,2512.4,2511.9,4.16958018]
[1730430386997,3.98089,2512.1,2511.9,4.16958018]
[1730430387195,3.98058,2512.2,2511.9,4.16958018]
[1730430387423,3.98049,2512.3,2511.9,4.16958018]
[1730430387804,0.802,2512.6,2511.9,8.15048018]
[1730430388038,0.802,2512.6,2511.9,4.16958018]
[1730430388039,3.98013,2512.5,2511.9,4.16958018]
[1730430388237,3.9801,2512.5,2511.9,4.24919218]
[1730430388539,3.98012,2512.5,2511.9,4.24919218]
[1730430388830,3.98035,2512.4,2511.9,4.16958018]
[1730430389132,3.9801,2512.5,2511.9,4.16958018]
[1730430389300,4.458301,2512.5,2511.9,4.16958018]
[1730430389932,3.98026,2512.4,2511.9,4.16958018]
[1730430390336,4.458301,2512.5,2511.9,4.16958018]
[1730430390542,3.98041,2512.3,2511.9,4.16958018]
[1730430391246,4.458381,2512.5,2511.9,4.16813992]
[1730430391410,0.5260381,2512.4,2511.9,4.16813992]
[1730430391610,4.5062981,2512.4,2511.9,4.16813992]
[1730430391819,0.5260381,2512.4,2511.9,4.16813992]
[1730430392149,3.97982,2512.7,2512.0,0.8263]
[1730430392449,3.98004,2512.6,2512.0,0.8263]
[1730430393246,3.97982,2512.7,2512.1,0.8132]
[1730430393424,7.95975,2512.7,2512.1,0.8132]
[1730430393621,3.97982,2512.7,2512.1,0.8132]
[1730430394013,7.95971,2512.7,2512.1,0.8132]
[1730430394218,8.84865682,2512.7,2512.1,0.8132]
[1730430394524,3.97982,2512.7,2512.1,4.79393]
[1730430395133,0.808,2512.8,2512.2,7.32734018]
[1730430395342,4.1012782,2512.9,2512.3,0.8018]
[1730430395862,4.1012782,2512.9,2512.5,3.34678018]
[1730430395863,0.1217582,2512.9,2512.5,3.34678018]
[1730430396021,0.1217582,2512.9,2512.8,4.10898018]
[1730430396717,0.1217582,2512.9,2512.8,8.08860018]
[1730430398126,0.1217582,2512.9,2512.8,4.10898018]
[1730430398332,0.1217582,2512.9,2512.8,0.7622]
[1730430399971,0.1217582,2512.9,2512.5,0.768]
[1730430400134,4.1012582,2512.9,2512.5,0.768]
[1730430403429,8.57603635,2512.9,2512.3,4.79321]
[1730430403629,4.1012582,2512.9,2512.4,3.34678018]
[1730430403865,4.1012582,2512.9,2512.6,3.34678018]
[1730430404162,0.1217582,2512.9,2512.6,3.34678018]
[1730430404869,0.1217582,2512.9,2512.4,7.32702018]
[1730430405481,0.1217582,2512.9,2512.4,3.34678018]
[1730430405655,4.1012382,2512.9,2512.4,3.34678018]
[1730430405989,3.97979,2512.7,2512.3,0.8129]
[1730430407392,3.97964,2512.8,2512.3,0.8129]
[1730430407776,3.97964,2512.8,2512.4,3.34678018]
[1730430408106,4.59649435,2512.9,2512.4,3.34678018]
[1730430408553,4.1013082,2512.9,2512.4,3.34678018]
[1730430408982,8.0808682,2512.9,2512.4,3.34678018]
[1730430409289,4.1013082,2512.9,2512.4,3.34678018]
[1730430409493,4.1013082,2512.9,2512.3,0.8129]
[1730430409494,0.8149,2512.8,2512.3,0.8129]
[1730430409659,0.8149,2512.8,2512.3,4.79329]
[1730430410196,0.8149,2512.8,2512.3,0.8129]
[1730430410370,1.30652082,2512.8,2512.3,0.8129]
[1730430410568,3.9798,2512.7,2512.3,0.8129]
[1730430411693,3.97994,2512.6,2512.3,0.8129]
[1730430411870,3.98011,2512.5,2512.1,0.7814]
[1730430412204,3.98052,2512.3,2511.8,4.18787976]
[1730430412356,3.98051,2512.3,2511.8,4.18787976]
[1730430413155,4.79516,2512.4,2511.8,4.18787976]
[1730430413358,0.8149,2512.4,2511.8,4.18787976]
[1730430413595,3.98042,2512.3,2511.8,4.18787976]
[1730430413999,7.96094,2512.3,2511.8,4.18787976]
[1730430414173,3.98061,2512.2,2511.8,4.18787976]
[1730430415284,4.858004,2512.3,2511.8,4.18787976]
[1730430415495,4.858004,2512.3,2511.8,4.26749602]
[1730430416288,3.98042,2512.3,2511.8,4.26749602]
[1730430416807,3.98042,2512.3,2511.8,4.18787976]
[1730430417293,4.79516,2512.4,2511.8,8.16898976]
[1730430417461,3.98045,2512.3,2511.8,8.16898976]
[1730430417887,3.98045,2512.3,2511.8,4.18787976]
[1730430418096,4.857997,2512.3,2511.8,4.18787976]
[1730430418661,4.857997,2512.3,2511.8,0.05969958]
[1730430418662,3.98057,2512.2,2511.8,0.05969958]
[1730430418902,3.98103,2512.0,2511.8,0.05969958]
[1730430419213,3.98105,2511.9,2511.8,0.05969958]
[1730430419373,5.648178,2511.9,2511.8,0.05969958]
[1730430422480,5.71708291,2511.9,2511.8,0.05969958]
[1730430423361,4.77952,2512.2,2511.8,0.05969958]
[1730430423566,3.98098,2512.0,2511.8,0.05969958]
[1730430423862,3.98098,2512.0,2511.0,0.8057]
[1730430423863,7.96328,2511.6,2511.0,0.8057]
[1730430424310,3.98164,2511.6,2511.0,4.78817]
[1730430424512,3.98127,2511.8,2511.1,3.98216]
[1730430424827,4.461427,2511.8,2511.1,3.98216]
[1730430425748,3.98161,2511.6,2511.0,0.8057]
[1730430426568,3.98138,2511.7,2511.1,3.4264159]
[1730430426719,3.98138,2511.7,2511.1,7.4086259]
[1730430426919,3.98162,2511.6,2511.1,3.4264159]
[1730430427230,3.98162,2511.6,2511.1,3.34678018]
[1730430427231,4.4277977,2511.6,2511.1,3.34678018]
[1730430427755,4.4277977,2511.6,2511.1,7.32905018]
[1730430428336,3.98162,2511.6,2511.1,7.32905018]
[1730430428663,3.98162,2511.6,2511.1,7.40868587]
[1730430429062,3.98127,2511.8,2511.2,3.98204]
[1730430429368,3.98098,2512.0,2511.5,3.34678018]
[1730430429578,3.98098,2512.0,2511.6,0.8318]
[1730430430225,4.04959972,2512.2,2511.6,0.8318]
[1730430430433,4.04959972,2512.2,2511.6,4.81316]
[1730430430434,4.93218769,2512.2,2511.6,4.81316]
[1730430430671,4.77628,2512.4,2511.8,0.7767]
[1730430430857,8.74958,2512.6,2511.9,11.38835333]
[1730430431062,8.74958,2512.6,2511.8,0.7767]
[1730430431063,0.7895,2512.6,2511.8,0.7767]
[1730430431576,3.98037,2512.4,2511.8,0.7767]
[1730430431865,4.855366,2512.4,2511.8,4.75786]
[1730430432171,3.98042,2512.3,2511.8,4.75788]
[1730430432874,3.98066,2512.2,2511.9,0.07961229]
[1730430433166,3.98066,2512.2,2511.8,0.7767]
[1730430433935,3.7895,2512.6,2512.1,3.98061]
[1730430434161,3.7895,2512.6,2511.9,3.98091]
[1730430434162,0.78382617,2512.5,2511.9,3.98091]
[1730430434359,3.9802,2512.5,2511.9,4.06052229]
[1730430434665,4.04878172,2512.7,2512.0,4.11558018]
[1730430434877,0.1217582,2512.9,2512.3,7.32709018]
[1730430435078,0.1217582,2512.9,2512.5,4.74884]
[1730430435368,0.1217582,2512.9,2512.5,8.09562018]
[1730430435740,0.1217582,2512.9,2512.5,0.7688]
[1730430435954,4.1012282,2512.9,2512.5,0.7688]
[1730430436854,0.1217582,2512.9,2512.5,4.9251702]
[1730430437058,0.1217582,2512.9,2512.8,0.8233]
[1730430437457,0.1217582,2512.9,2512.8,0.90288422]
[1730430437644,0.1217582,2512.9,2512.8,0.8233]
[1730430438169,0.1217582,2512.9,2512.8,4.80292]
[1730430438472,0.1217582,2512.9,2512.8,6.09545112]
[1730430438764,0.1217582,2512.9,2512.8,6.01586702]
[1730430439136,0.1217582,2512.9,2512.8,6.08004498]
[1730430439340,0.1217582,2512.9,2512.8,9.57046702]
[1730430442378,0.1217582,2512.9,2512.8,9.56046702]
[1730430442681,0.1217582,2512.9,2512.8,9.01046702]
[1730430442856,0.1217582,2512.9,2512.8,9.00046702]
[1730430443269,0.1217582,2512.9,2512.8,9.01046702]
[1730430443978,0.1217582,2512.9,2512.8,5.02084702]
[1730430444177,0.1217582,2512.9,2512.8,2.02084702]
[1730430444880,0.1217582,2512.9,2512.8,6.08004482]
[1730430445594,0.1217582,2512.9,2512.8,2.02084702]
[1730430445950,0.1217582,2512.9,2512.8,6.08004484]
[1730430446350,0.1217582,2512.9,2512.8,6.00046702]
[1730430447853,0.1217582,2512.9,2512.8,6.08004056]
[1730430448161,0.1217582,2512.9,2512.8,6.00046702]
[1730430448470,0.1217582,2512.9,2512.8,6.08004057]
[1730430448700,0.1217582,2512.9,2512.8,6.00046702]
[1730430449365,0.1217582,2512.9,2512.8,6.08004083]
[1730430449773,0.1217582,2512.9,2512.8,6.00046702]
[1730430449963,0.1217582,2512.9,2512.8,9.00046702]
[1730430451677,0.1217582,2512.9,2512.8,9.01046702]
[1730430452165,0.11180874,2512.9,2512.8,9.02046702]
[1730430454181,0.11180874,2512.9,2512.8,9.01046702]
[1730430455903,0.11180874,2512.9,2512.8,9.00046702]
[1730430456103,0.11180874,2512.9,2512.8,6.00046702]
[1730430457292,0.11180874,2512.9,2512.8,9.00046702]
[1730430458163,0.11180874,2512.9,2512.8,9.56046702]
[1730430459857,0.11180874,2512.9,2512.8,9.01046702]
[1730430460261,0.11180874,2512.9,2512.8,9.00046702]
[1730430460460,3.97776,2514.0,2512.8,9.00046702]
[1730430460461,4.73453,2514.1,2513.5,0.8004]
[1730430460663,0.7569,2514.1,2513.8,3.34678018]
[1730430460899,3.97733,2514.3,2513.8,3.42633195]
[1730430460900,4.73423,2514.3,2513.8,3.42633195]
[1730430461160,0.7569,2514.5,2514.3,3.97723]
[1730430461403,4.73336,2514.8,2514.1,7.32419018]
[1730430461701,4.73336,2514.8,2514.2,3.97736]
[1730430462002,4.73336,2514.8,2514.2,5.10751502]
[1730430462496,4.73338,2514.8,2514.2,1.13015502]
[1730430462797,3.97679,2514.6,2514.2,1.13015502]
[1730430462998,3.97671,2514.7,2514.1,7.32419018]
[1730430463203,3.9769,2514.6,2514.1,3.34678018]
[1730430463366,8.71,2514.8,2514.1,7.32422018]
[1730430463566,3.97664,2514.7,2514.1,7.32422018]
[1730430464465,0.7569,2514.8,2514.1,3.34678018]
[1730430464684,3.97687,2514.6,2514.1,3.34678018]
[1730430464992,3.97734,2514.3,2513.7,7.32491018]
[1730430465175,7.95472,2514.3,2513.7,7.32491018]
[1730430465688,3.97734,2514.3,2513.7,7.32491018]
[1730430466607,3.97734,2514.3,2513.7,3.34678018]
[1730430466901,3.9775,2514.2,2513.6,4.77233]
[1730430467281,3.97734,2514.3,2513.6,0.794]
[1730430467476,4.450194,2514.3,2513.7,3.34678018]
[1730430467696,3.97752,2514.2,2513.6,4.77228]
[1730430467868,4.450194,2514.3,2513.6,4.77228]
[1730430468196,4.450194,2514.3,2513.7,3.97809]
[1730430468506,4.450194,2514.3,2513.6,0.794]
[1730430468670,3.97761,2514.1,2513.6,0.794]
[1730430468867,0.8162,2514.0,2513.5,7.32520018]
[1730430469092,3.97815,2513.8,2513.2,3.34678018]
[1730430469321,3.97793,2513.9,2513.2,3.34678018]
[1730430469494,3.97793,2513.9,2513.3,3.97872]
[1730430469806,4.457343,2513.9,2513.3,3.97872]
[1730430470406,4.457343,2513.9,2513.2,7.32568018]
[1730430470407,3.97815,2513.8,2513.2,7.32568018]
[1730430470822,3.9782,2513.7,2513.2,7.32568018]
[1730430471362,4.457353,2513.9,2513.2,7.32568018]
[1730430471699,4.457353,2513.9,2513.3,3.97883]
[1730430471900,0.5273553,2513.8,2513.2,7.32568018]
[1730430472198,0.5273553,2513.8,2513.3,3.97883]
[1730430472400,4.5054953,2513.8,2513.2,7.32568018]
[1730430472907,0.5273553,2513.8,2513.4,3.97858]
[1730430473114,3.97788,2513.9,2513.4,3.97858]
[1730430473604,7.9559,2513.9,2513.3,0.0795625]
[1730430473805,7.9559,2513.9,2513.2,11.30451018]
[1730430474003,3.97788,2513.9,2513.2,11.30451018]
[1730430474173,4.855052,2513.9,2513.2,11.30451018]
[1730430474374,3.97812,2513.8,2513.2,11.30453018]
[1730430474593,3.97812,2513.8,2513.2,7.32564018]
[1730430475107,0.8289,2513.6,2513.0,0.8303]
[1730430475275,3.97861,2513.5,2513.0,0.8303]
[1730430475473,0.878578,2513.5,2512.9,3.34678018]
[1730430475677,3.97886,2513.3,2512.9,3.34678018]
[1730430475900,3.97888,2513.3,2512.9,3.34678018]
[1730430476205,4.857158,2513.5,2512.9,3.34678018]
[1730430476508,4.857158,2513.5,2513.0,0.07957586]
[1730430477006,3.97876,2513.4,2513.0,0.07957586]
[1730430478173,0.878578,2513.5,2513.0,0.07957586]
[1730430478573,4.857108,2513.5,2513.0,0.07957586]
[1730430478782,0.8289,2513.6,2513.1,3.97912]
[1730430479198,0.8289,2513.6,2513.1,7.95817]
[1730430479405,0.8289,2513.6,2513.1,7.95809]
[1730430479605,0.8289,2513.6,2513.1,7.95808]
[1730430479802,0.8289,2513.6,2513.1,3.97904]
[1730430479994,0.8289,2513.6,2513.3,3.97873]
[1730430480715,0.8199,2513.8,2513.3,3.97873]
[1730430481031,0.8199,2513.8,2513.4,0.07956457]
[1730430481414,4.79797,2513.8,2513.4,0.07956457]
[1730430481599,4.79797,2513.8,2513.3,3.97873]
[1730430481794,3.97819,2513.7,2513.2,4.09768018]
[1730430482108,0.8199,2513.8,2513.3,3.97879]
[1730430482794,0.8199,2513.8,2513.3,4.05835459]
[1730430483402,4.04687465,2513.9,2513.3,4.05835459]
[1730430483993,3.97806,2513.8,2513.2,8.75439514]
[1730430484227,4.04684465,2513.9,2513.3,3.97878]
[1730430484396,8.02484465,2513.9,2513.3,3.97878]
[1730430485013,8.02484465,2513.9,2513.2,8.07664018]
[1730430485214,4.04684465,2513.9,2513.3,3.9788]
[1730430485429,4.04684465,2513.9,2513.4,0.07956465]
[1730430485639,4.93111112,2513.9,2513.4,0.07956465]
[1730430486097,4.86220647,2513.9,2513.4,0.07956465]
[1730430486490,4.79592,2514.0,2513.4,4.05822465]
[1730430486697,0.8182,2514.0,2513.6,0.7743]
[1730430487133,0.8182,2514.0,2513.6,0.85385834]
[1730430487359,0.8182,2514.0,2513.6,0.7743]
[1730430487631,4.79594,2514.0,2513.6,0.7743]
[1730430488020,0.8182,2514.0,2513.6,0.7743]
[1730430488226,4.79606,2514.0,2513.6,0.7743]
[1730430488410,3.97786,2514.0,2513.6,0.7743]
[1730430488742,4.85490418,2514.2,2513.7,3.97818]
[1730430488901,4.78591,2514.2,2513.7,0.07955956]
[1730430490433,0.81971245,2514.4,2514.0,4.7467]
[1730430490733,3.97708,2514.5,2514.0,0.7691]
[1730430491037,3.97695,2514.5,2514.0,0.7691]
[1730430491531,3.97709,2514.4,2513.8,3.97803]
[1730430491733,0.7723,2514.2,2513.7,4.75911]
[1730430491935,0.7723,2514.2,2513.7,8.73721]
[1730430492137,0.7723,2514.2,2513.7,4.7591]
[1730430493230,3.97725,2514.3,2513.7,4.7591]
[1730430493422,3.97725,2514.3,2513.8,0.55319844]
[1730430494437,4.76269,2514.4,2513.8,4.61072842]
[1730430494595,4.76269,2514.4,2513.8,4.61075842]
[1730430494799,3.97726,2514.3,2513.8,4.61075842]
[1730430494996,4.76269,2514.4,2513.8,4.61075842]
[1730430497531,4.04576064,2514.6,2513.9,1.32557584]
[1730430497735,0.06891064,2514.6,2514.0,3.97772]
[1730430498033,0.06891064,2514.6,2514.2,3.9774]
[1730430498240,3.97702,2514.5,2514.0,3.97762]
[1730430498402,3.97702,2514.5,2514.1,0.53031958]
[1730430498830,4.04579064,2514.6,2514.1,0.53031958]
[1730430499140,4.04579064,2514.6,2514.0,3.97762]
[1730430499434,4.04579064,2514.6,2514.0,7.95524]
[1730430499736,4.04579064,2514.6,2514.0,3.97762]
[1730430500249,4.04579064,2514.6,2514.0,7.95525]
[1730430500436,4.04579064,2514.6,2514.0,3.97762]
[1730430500637,4.04579064,2514.6,2514.1,0.53031958]
[1730430502316,4.04579064,2514.6,2514.1,4.50785958]
[1730430502925,3.97654,2514.8,2514.3,0.7785]
[1730430504204,7.95309,2514.8,2514.3,0.7785]
[1730430504410,3.97654,2514.8,2514.3,0.7785]
[1730430504622,3.97654,2514.8,2514.3,1.31506383]
[1730430505020,3.97677,2514.6,2514.1,0.53031958]
[1730430505251,3.97677,2514.6,2514.0,4.74191]
[1730430506119,3.97693,2514.5,2514.0,4.74191]
[1730430506540,3.97677,2514.6,2514.0,4.74191]
[1730430507341,3.97677,2514.6,2514.1,0.07954256]
[1730430507558,3.97677,2514.6,2514.1,4.9909164]
[1730430507924,3.97677,2514.6,2514.1,4.91137384]
[1730430508128,3.97677,2514.6,2514.1,4.99091641]
[1730430509246,3.97654,2514.8,2514.3,0.763]
[1730430510814,4.04511944,2515.0,2514.4,0.07953874]
[1730430511013,4.04511944,2515.0,2514.4,4.05650874]
[1730430511014,0.06889944,2515.0,2514.4,4.05650874]
[1730430511250,0.06889944,2515.0,2514.7,0.8303]
[1730430511413,3.97599,2515.1,2514.7,0.8303]
[1730430511629,4.04478929,2515.2,2514.7,0.8303]
[1730430511831,3.97615,2515.0,2514.7,0.8303]
[1730430512143,8.02071929,2515.2,2514.7,0.8303]
[1730430512350,4.04478929,2515.2,2514.7,0.8303]
[1730430513123,3.97607,2515.1,2514.7,0.8303]
[1730430513323,4.04478929,2515.2,2514.7,0.8303]
[1730430513526,4.04478929,2515.2,2514.7,1.35920609]
[1730430514014,8.02075929,2515.2,2514.7,1.35920609]
[1730430514216,4.04478929,2515.2,2514.7,1.35920609]
[1730430514414,8.02070929,2515.2,2514.7,1.35920609]
[1730430514655,3.97604,2515.1,2514.7,1.35920609]
[1730430514814,3.97628,2515.0,2514.4,0.7636]
[1730430515015,3.97628,2515.0,2514.4,8.71754]
[1730430515246,3.97628,2515.0,2514.4,4.74056]
[1730430515761,3.97628,2515.0,2514.4,8.71755]
[1730430516244,3.97603,2515.1,2514.6,0.8115]
[1730430516444,3.97603,2515.1,2514.6,1.688024]
[1730430517015,0.06887929,2515.2,2514.6,1.688024]
[1730430517214,0.06887929,2515.2,2514.6,5.664654]
[1730430517422,0.06887929,2515.2,2514.7,3.97658]
[1730430517629,0.06887929,2515.2,2514.7,7.9531]
[1730430517924,0.06887929,2515.2,2514.7,3.97652]
[1730430518147,0.06887929,2515.2,2514.8,3.97635]
[1730430518777,0.06887929,2515.2,2514.7,4.71116835]
[1730430519075,0.06887929,2515.2,2514.8,3.97642]
[1730430519245,0.06887929,2515.2,2514.9,3.97629]
[1730430519754,0.06887929,2515.2,2515.1,3.97598]
[1730430519962,0.06887929,2515.2,2514.9,3.97619]
[1730430520342,0.06887929,2515.2,2514.7,4.71113835]
[1730430520542,0.06887929,2515.2,2514.8,3.97634]
[1730430520938,0.06887929,2515.2,2514.8,3.97642]
[1730430521172,0.06887929,2515.2,2514.7,7.95301]
[1730430521371,0.06887929,2515.2,2514.7,3.97649]
[1730430521544,0.1267582,2515.4,2514.9,3.97616]
[1730430521759,0.1267582,2515.4,2515.0,4.7796]
[1730430521950,0.1267582,2515.4,2515.0,0.8035]
[1730430522452,0.1267582,2515.4,2515.0,4.7795]
[1730430524981,0.1267582,2515.4,2515.0,0.8035]
[1730430525350,0.7901,2515.3,2514.8,3.97637]
[1730430525676,0.7901,2515.3,2514.8,4.93187398]
[1730430525883,0.7901,2515.3,2514.9,3.97628]
[1730430528584,0.7901,2515.3,2514.8,8.828705]
[1730430528881,0.7901,2515.3,2514.9,3.97628]
[1730430529474,0.7901,2515.3,2514.8,4.852355]
[1730430529781,0.7901,2515.3,2514.9,3.97627]
[1730430530486,0.7901,2515.3,2514.9,6.43180517]
[1730430532354,0.1267582,2515.4,2514.9,6.43180517]
[1730430532587,0.1267582,2515.4,2514.9,5.46821267]
[1730430533687,0.1267582,2515.4,2514.9,1.49194267]
[1730430533859,0.7884,2515.3,2514.8,7.95268]
[1730430534060,0.7884,2515.3,2514.9,5.46821267]
[1730430534266,0.7884,2515.3,2515.0,0.94445327]
[1730430535995,0.7884,2515.3,2515.1,1.49194267]
[1730430536178,0.7884,2515.3,2514.9,5.46812267]
[1730430538183,0.7884,2515.3,2514.9,9.44433267]
[1730430538496,0.1267582,2515.4,2514.9,5.46812267]
[1730430538666,0.1267582,2515.4,2514.9,10.46952894]
[1730430539373,0.1267582,2515.4,2515.0,3.97611]
[1730430540288,0.1267582,2515.4,2515.1,3.97596]
[1730430540594,0.1267582,2515.4,2515.1,5.46790267]
[1730430541095,0.1267582,2515.4,2515.1,5.46782267]
[1730430541686,0.1267582,2515.4,2515.1,1.49194267]
[1730430542403,0.1267582,2515.4,2515.1,5.46782267]
[1730430543412,0.1267582,2515.4,2515.2,0.7689]
[1730430543570,0.1267582,2515.4,2515.3,5.54710313]
[1730430543769,0.1267582,2515.4,2515.3,3.97566]
[1730430545490,0.1267582,2515.4,2515.2,6.23651267]
[1730430545491,0.1267582,2515.4,2515.2,5.46761267]